fUSD/lending_fUSD_20250823
["ID","MTS","AMOUNT","RATE_DAILY","PERIOD"]
[381016320,1755948286110,-1814.53,0.00035162,60]
[381016321,1755948286136,-1814.53,0.00035262,60]
[381016322,1755948286162,-867.58876335,0.00035308,60]
[381016323,1755948286189,-1814.53,0.00035362,60]
[381016324,1755948286215,-1814.53,0.00035462,60]
[381016325,1755948286242,-1814.53,0.00035562,60]
[381016326,1755948286267,-150.0,0.00035617,120]
[381016327,1755948286292,-1814.53,0.00035662,60]
[381016328,1755948286317,-1814.53,0.00035762,60]
[381016329,1755948286343,-1814.53,0.00035862,60]
[381016330,1755948286367,-3305.39675,0.00035888,30]
[381016331,1755948286393,-1000.0,0.000359,45]
[381016332,1755948286418,-1814.53,0.00035962,60]
[381016333,1755948286443,-2300.0,0.00036,30]
[381016334,1755948286466,-50000.0,0.00036,30]
[381016335,1755948286492,-2000.0,0.00036,36]
[381016336,1755948286518,-856.0900992,0.00036,120]
[381016337,1755948286542,-1091.68799538,0.00036,120]
[381016338,1755948286569,-700.0,0.00036,120]
[381016339,1755948286597,-1814.53,0.00036062,60]
[381016340,1755948286622,-3305.39675,0.00036088,30]
[381016341,1755948286648,-1814.53,0.00036162,60]
[381016342,1755948286672,-150.0,0.00036165,120]
[381016343,1755948286701,-1814.53,0.00036262,60]
[381016344,1755948286726,-3305.39675,0.00036288,30]
[381016345,1755948286751,-320272.60928345,0.000363,30]
[381016346,1755948286776,-1814.53,0.00036362,60]
[381016347,1755948286801,-1002.0,0.000364,120]
[381016348,1755948286826,-1814.53,0.00036462,60]
[381016349,1755948286850,-3305.39675,0.00036488,30]
[381016350,1755948286875,-1814.53,0.00036562,60]
[381016351,1755948286900,-1814.53,0.00036662,60]
[381016352,1755948286930,-3305.39675,0.00036688,30]
[381016353,1755948286956,-536.74029988,0.000367,120]
[381016354,1755948286982,-150.0,0.00036713,120]
[381016355,1755948287008,-1814.53,0.00036762,60]
[381016356,1755948287032,-688.0,0.000368,60]
[381016357,1755948287058,-1814.53,0.00036862,60]
[381016358,1755948287082,-3305.39675,0.00036888,30]
[381016359,1755948287110,-1710.69124527,0.000369,120]
[381016360,1755948287137,-1814.53,0.00036962,60]
[381016361,1755948287163,-250.0,0.00037,30]
[381016362,1755948287188,-500000.0,0.00037,30]
[381016363,1755948287213,-902.14071318,0.00037,30]
[381016364,1755948287237,-50000.0,0.00037,45]
[381016365,1755948287261,-10614.7622179,0.00037,30]
[381016366,1755948287289,-5050.0,0.00037,117]
[381016367,1755948287315,-1814.53,0.00037062,60]
[381016368,1755948287340,-3305.39675,0.00037088,30]
[381016369,1755948287365,-1814.53,0.00037162,60]
[381016370,1755948287390,-150.0,0.00037261,120]
[381016371,1755948287418,-1814.53,0.00037262,60]
[381016372,1755948287445,-150.0,0.0003727,120]
[381016373,1755948287470,-3305.39675,0.00037288,30]
[381016374,1755948287496,-1814.53,0.00037362,60]
[381016375,1755948287521,-280.0,0.000374,30]
[381016376,1755948287546,-1814.53,0.00037462,60]
[381016377,1755948287571,-3305.39675,0.00037488,30]
[381016378,1755948287595,-18913.05599715,0.000375,30]
[381016379,1755948287620,-500.0,0.0003755,120]
[381016380,1755948287647,-1814.53,0.00037562,60]
[381016381,1755948287672,-1814.53,0.00037662,60]
[381016382,1755948287697,-6811.82,0.00037666,49]
[381016383,1755948287722,-295.446,0.00037666,49]
[381016384,1755948287746,-600.0,0.00037671,120]
[381016385,1755948287771,-3305.39675,0.00037688,30]
[381016386,1755948287795,-14871.51934828,0.000377,30]
[381016387,1755948287821,-1814.53,0.00037762,60]
[381016388,1755948287846,-20000.0,0.000378,30]
[381016389,1755948287872,-24500.04262337,0.000378,30]
[381016390,1755948288124,-150.0,0.00037809,120]
[381016391,1755948288154,-1814.53,0.00037862,60]
[381016392,1755948288180,-204.0376616,0.0003787,120]
[381016393,1755948288207,-3305.39675,0.00037888,30]
[381016394,1755948288234,-1814.53,0.00037962,60]
[381016395,1755948288259,-579.91412244,0.00037999,120]
[381016396,1755948288285,-11000.0,0.00038,45]
[381016397,1755948288312,-250.0,0.00038,30]
[381016398,1755948288338,-168.0,0.00038,120]
[381016399,1755948288364,-161.0,0.00038,120]
[381016400,1755948288390,-800.0,0.00038,120]
[381016401,1755948288416,-1814.53,0.00038062,60]
[381016402,1755948288442,-3305.39675,0.00038088,30]
[381016403,1755948288468,-1814.53,0.00038162,60]
[381016404,1755948288496,-59428.85245702,0.00038219,30]
[381016405,1755948288522,-1000.0,0.00038248,31]
[381016406,1755948288548,-1814.53,0.00038262,60]
[381016407,1755948288574,-3305.39675,0.00038288,30]
[381016408,1755948288600,-2000.0,0.00038356,120]
[381016409,1755948288626,-2000.0,0.00038356,120]
[381016410,1755948288653,-2000.0,0.00038356,120]
[381016411,1755948288679,-2000.0,0.00038356,120]
[381016412,1755948288705,-2000.0,0.00038356,120]
[381016413,1755948288732,-2000.0,0.00038356,120]
[381016414,1755948288758,-2000.0,0.00038356,120]
[381016415,1755948288784,-2000.0,0.00038356,120]
[381016416,1755948288811,-2000.0,0.00038356,120]
[381016417,1755948288836,-2000.0,0.00038356,120]
[381016418,1755948288860,-2000.0,0.00038356,120]
[381016419,1755948288886,-2000.0,0.00038356,120]
[381016420,1755948288917,-2000.0,0.00038356,120]
[381016421,1755948288945,-2000.0,0.00038356,120]
[381016422,1755948288973,-2000.0,0.00038356,120]
[381016423,1755948289002,-2000.0,0.00038356,120]
[381016424,1755948289029,-2000.0,0.00038356,120]
[381016425,1755948289055,-2000.0,0.00038356,120]
[381016426,1755948289084,-2000.0,0.00038356,120]
[381016427,1755948289111,-2000.0,0.00038356,120]
[381016428,1755948289136,-2000.0,0.00038356,120]
[381016429,1755948289162,-2000.0,0.00038356,120]
[381016430,1755948289188,-2000.0,0.00038356,120]
[381016431,1755948289215,-2000.0,0.00038356,120]
[381016432,1755948289242,-2000.0,0.00038356,120]
[381016433,1755948289267,-2000.0,0.00038356,120]
[381016434,1755948289293,-2000.0,0.00038356,120]
[381016435,1755948289317,-2000.0,0.00038356,120]
[381016436,1755948289342,-2000.0,0.00038356,120]
[381016437,1755948289366,-2000.0,0.00038356,120]
[381016438,1755948289392,-2000.0,0.00038356,120]
[381016439,1755948289417,-2000.0,0.00038356,120]
[381016440,1755948289441,-2000.0,0.00038356,120]
[381016441,1755948289467,-2000.0,0.00038356,120]
[381016442,1755948289491,-479.0,0.00038356,120]
[381016443,1755948289516,-150.0,0.00038357,120]
[381016444,1755948289542,-1814.53,0.00038362,120]
[381016445,1755948289566,-1815.22852495,0.00038462,120]
[381016446,1755948289591,-3305.39675,0.00038488,30]
[381016447,1755948289615,-16104.75983055,0.000385,30]
[381016448,1755948289640,-232.04,0.000386,30]
[381016449,1755948289668,-2000.0,0.000386,30]
[381016450,1755948289694,-6061.46889017,0.00038646,31]
[381016451,1755948289721,-9376.02857532,0.00038646,31]
[381016452,1755948289751,-3305.39675,0.00038688,30]
[381016453,1755948289783,-1846.16453244,0.0003869,120]
[381016454,1755948289811,-59428.85245702,0.00038824,32]
[381016455,1755948289836,-168.0,0.000389,120]
[381016456,1755948289861,-449.77685,0.000389,120]
[381016457,1755948289887,-161.0,0.000389,120]
[381016458,1755948289918,-150.0,0.00038904,120]
[381016459,1755948289958,-76221.79,0.00039,30]
[381016460,1755948289985,-11000.0,0.00039,45]
[381016461,1755948290012,-2103.59447205,0.00039,30]
[381016462,1755948290038,-921.30153034,0.00039,120]
[381016463,1755948290063,-1483.90376819,0.00039,120]
[381016464,1755948290087,-1541.64186073,0.00039,120]
[381016465,1755948290112,-1593.04313346,0.00039,120]
[381016466,1755948290137,-287.0,0.00039,120]
[381016467,1755948290163,-3000.0,0.00039,120]
[381016468,1755948290189,-2640.56388987,0.00039,120]
[381016469,1755948290214,-3305.39675,0.00039088,30]
[381016470,1755948290240,-3305.39675,0.00039288,30]
[381016471,1755948290267,-59428.85245702,0.0003943,33]
[381016472,1755948290292,-150.0,0.00039452,120]
[381016473,1755948290317,-3305.39675,0.00039488,30]
[381016474,1755948290341,-50000.0,0.000395,30]
[381016475,1755948290366,-500.0,0.0003955,120]
[381016476,1755948290390,-3305.39675,0.00039688,30]
[381016477,1755948290415,-792.13469994,0.000397,120]
[381016478,1755948290439,-168.0,0.000398,120]
[381016479,1755948290463,-2693.02993384,0.000398,120]
[381016480,1755948290488,-161.0,0.000398,120]
[381016481,1755948290512,-12000.0,0.000398,90]
[381016482,1755948290536,-5555.0,0.00039867,117]
[381016483,1755948290560,-3305.39675,0.00039888,30]
[381016484,1755948290804,-12003.03243279,0.000399,30]
[381016485,1755948290831,-158.74813353,0.000399,120]
[381016486,1755948290855,-158.7481335,0.000399,120]
[381016487,1755948290879,-158.7481335,0.000399,120]
[381016488,1755948290904,-158.7481335,0.000399,120]
[381016489,1755948290932,-158.7481335,0.000399,120]
[381016490,1755948290958,-158.7481335,0.000399,120]
[381016491,1755948290982,-158.7481335,0.000399,120]
[381016492,1755948291009,-158.7481335,0.000399,120]
[381016493,1755948291035,-158.7481335,0.000399,120]
[381016494,1755948291059,-158.7481335,0.000399,120]
[381016495,1755948291084,-9285.7539097,0.0003999,30]
[381016496,1755948291115,-27663.55105876,0.00039998,30]
[381016497,1755948291150,-4982.06825662,0.0004,30]
[381016498,1755948291179,-2673.36206595,0.0004,30]
[381016499,1755948291207,-2500.0,0.0004,30]
[381016500,1755948291234,-76221.79,0.0004,30]
[381016501,1755948291261,-4796.76406877,0.0004,30]
[381016502,1755948291287,-202.28153732,0.0004,30]
[381016503,1755948291313,-477.12749073,0.0004,30]
[381016504,1755948291339,-10044.56696457,0.0004,30]
[381016505,1755948291367,-1000.0,0.0004,30]
[381016506,1755948291395,-150.0,0.0004,30]
[381016507,1755948291422,-2000.0,0.0004,40]
[381016508,1755948291448,-500.0,0.0004,30]
[381016509,1755948291474,-11000.0,0.0004,45]
[381016510,1755948291501,-5350.55,0.0004,30]
[381016511,1755948291527,-9048.90099263,0.0004,30]
[381016512,1755948291551,-99033.45871145,0.0004,30]
[381016513,1755948301239,-1256.28,0.00028376,30]
[381016514,1755948301271,-1256.28,0.00029652,30]
[381016515,1755948301302,-1256.28,0.00030927,30]
[381016516,1755948301336,-1256.28,0.00032202,30]
[381016517,1755948301386,-1268.23,0.00036438,31]
[381016518,1755948301413,-1268.23,0.00037123,33]
[381016519,1755948301440,-1268.23,0.00037808,35]
[381016520,1755948301466,-1268.23,0.00038493,37]
[381016521,1755948301492,-1268.23,0.00039178,39]
[381016522,1755948301518,-1268.23,0.00039863,41]
[381016523,1755948301545,-67253.95780349,0.0004,30]
[381016524,1755948301571,-22612.0,0.0004,30]
[381016525,1755948301596,-8380.0,0.0004,30]
[381016526,1755948301621,-69926.80356103,0.0004,30]
[381016527,1755948301646,-370560.03290558,0.0004,30]
[381016528,1755948301673,-3448632.7057299,0.0004,30]
[381016529,1755948307428,-200.0,0.00034,30]
[381016530,1755948307476,-2349002.72665008,0.0004,30]
[381016531,1755948307523,-1650797.27334992,0.0004,30]
[381016532,1755948312660,-633.86877784,0.00036661,120]
[381016533,1755948312690,-283.096,0.0003871,30]
[381016534,1755948312720,-2336668.12447621,0.0004,30]
[381016535,1755948312748,-37477.92641336,0.0004,30]
[381016536,1755948312776,-240739.16936554,0.0004,30]
[381016537,1755948312819,-154566.43920265,0.0004,30]
[381016538,1755948312864,-16668.0,0.0004,30]
[381016539,1755948312911,-288.1005,0.0004,120]
[381016540,1755948312944,-3008.8813,0.0004,120]
[381016541,1755948312983,-766.0,0.0004,120]
[381016542,1755948313013,-500.000799,0.0004,120]
[381016543,1755948313043,-442.6,0.0004,120]
[381016544,1755948313071,-200.0,0.0004,120]
[381016545,1755948313100,-2578.64035196,0.0004,90]
[381016546,1755948313128,-1712.38745653,0.0004,120]
[381016547,1755948313155,-951.44692073,0.0004,120]
[381016548,1755948313183,-238.07941012,0.0004,120]
[381016549,1755948313211,-562.18764553,0.0004,120]
[381016550,1755948313239,-511.08546635,0.0004,120]
[381016551,1755948313266,-1146.18562866,0.0004,120]
[381016552,1755948313292,-260.25107706,0.0004,80]
[381016553,1755948313318,-824.10208771,0.0004,120]
[381016554,1755948313345,-337.19764856,0.0004,120]
[381016555,1755948313372,-166.42831164,0.0004,120]
[381016556,1755948313402,-222.41338727,0.0004,120]
[381016557,1755948313436,-200.0,0.0004,120]
[381016558,1755948313464,-700.0,0.0004,120]
[381016559,1755948313492,-844.27675029,0.0004,120]
[381016560,1755948313520,-844.27675029,0.0004,120]
[381016561,1755948313548,-4001.29,0.0004,120]
[381016562,1755948313575,-908.18,0.0004,120]
[381016563,1755948313604,-1830.3,0.0004,120]
[381016564,1755948313631,-212.10093811,0.0004,120]
[381016565,1755948313658,-2000.0,0.0004,120]
[381016566,1755948313686,-160.0,0.0004,120]
[381016567,1755948313713,-150.0,0.0004,30]
[381016568,1755948313741,-150.0,0.0004,120]
[381016569,1755948313771,-59428.85245702,0.00040035,34]
[381016570,1755948313798,-3305.39675,0.00040088,30]
[381016571,1755948313825,-3305.39675,0.00040288,30]
[381016572,1755948313853,-369.43730908,0.00040295,120]
[381016573,1755948313885,-3305.39675,0.00040488,30]
[381016574,1755948313915,-1404.84066306,0.000405,120]
[381016575,1755948313950,-1268.23,0.00040547,43]
[381016577,1755948313978,-150.0,0.00040548,120]
[381016578,1755948314007,-233.33333333,0.00040577,120]
[381016579,1755948314036,-3226.23,0.00040618,120]
[381016580,1755948314066,-59428.85245702,0.00040641,36]
[381016581,1755948314095,-1444.0,0.00040658,120]
[381016582,1755948314121,-3305.39675,0.00040688,30]
[381016583,1755948314148,-168.0,0.000407,120]
[381016584,1755948314175,-161.0,0.000407,120]
[381016585,1755948314206,-3261.68936477,0.000408,90]
[381016586,1755948314233,-3305.39675,0.00040888,30]
[381016587,1755948314261,-277.12575958,0.00040999,120]
[381016588,1755948314287,-638.58,0.00041,30]
[381016589,1755948314317,-1000.0,0.00041,30]
[381016590,1755948314344,-504168.51404436,0.00041,30]
[381016591,1755948314370,-150.0,0.00041,30]
[381016592,1755948314396,-10000.0,0.00041,30]
[381016593,1755948314423,-11000.0,0.00041,50]
[381016594,1755948314449,-113550.65826683,0.00041,30]
[381016595,1755948314479,-200000.0,0.00041,30]
[381016596,1755948314509,-2893.3,0.00041,120]
[381016597,1755948314838,-4000.0,0.00041,120]
[381016598,1755948314874,-673.94323108,0.00041,120]
[381016599,1755948314904,-1502.40506053,0.00041,120]
[381016600,1755948314934,-2584.2499969,0.00041,120]
[381016601,1755948314962,-3305.39675,0.00041088,30]
[381016602,1755948314991,-1000.0,0.00041095,30]
[381016603,1755948315024,-612.76181411,0.00041095,30]
[381016604,1755948315052,-653.93,0.00041095,120]
[381016605,1755948315081,-653.93,0.00041095,120]
[381016606,1755948315110,-653.93,0.00041095,120]
[381016607,1755948315138,-653.93,0.00041095,120]
[381016608,1755948315169,-653.93,0.00041095,120]
[381016609,1755948315198,-653.93,0.00041095,120]
[381016610,1755948315225,-653.93,0.00041095,120]
[381016611,1755948315252,-653.93,0.00041095,120]
[381016612,1755948315279,-653.93,0.00041095,120]
[381016613,1755948315307,-653.93,0.00041095,120]
[381016614,1755948315334,-653.93,0.00041095,120]
[381016615,1755948315363,-653.93,0.00041095,120]
[381016616,1755948315390,-653.93,0.00041095,120]
[381016617,1755948315418,-653.93,0.00041095,120]
[381016618,1755948315445,-653.93,0.00041095,120]
[381016619,1755948315472,-653.93,0.00041095,120]
[381016620,1755948315498,-653.93,0.00041095,120]
[381016621,1755948315524,-653.93,0.00041095,120]
[381016622,1755948315550,-653.93,0.00041095,120]
[381016623,1755948315578,-653.93,0.00041095,120]
[381016624,1755948315606,-653.93,0.00041095,120]
[381016625,1755948315636,-653.93,0.00041095,120]
[381016626,1755948315665,-653.93,0.00041095,120]
[381016627,1755948315692,-654.08,0.00041095,120]
[381016628,1755948315719,-500.0,0.00041096,30]
[381016629,1755948315747,-600.0,0.00041096,30]
[381016630,1755948315776,-3888.0,0.00041096,30]
[381016631,1755948315806,-1000.0,0.00041096,30]
[381016632,1755948315833,-600.0,0.00041096,30]
[381016633,1755948315863,-500.0,0.00041096,30]
[381016634,1755948315896,-4031.856,0.00041096,30]
[381016635,1755948315928,-600.0,0.00041096,30]
[381016636,1755948315956,-500.0,0.00041096,30]
[381016637,1755948315983,-160.0,0.00041096,30]
[381016638,1755948316011,-1000.0,0.00041096,30]
[381016639,1755948316038,-4181.034672,0.00041096,30]
[381016640,1755948316062,-600.0,0.00041096,30]
[381016641,1755948316089,-500.0,0.00041096,30]
[381016642,1755948316117,-160.0,0.00041096,30]
[381016643,1755948316145,-1000.0,0.00041096,30]
[381016644,1755948316173,-4335.73295486,0.00041096,30]
[381016645,1755948316200,-600.0,0.00041096,30]
[381016646,1755948316227,-160.0,0.00041096,30]
[381016647,1755948316256,-4496.15507419,0.00041096,30]
[381016648,1755948316284,-500.0,0.00041096,30]
[381016649,1755948316311,-1000.0,0.00041096,30]
[381016650,1755948316337,-600.0,0.00041096,30]
[381016651,1755948316364,-160.0,0.00041096,30]
[381016652,1755948316393,-1000.0,0.00041096,30]
[381016653,1755948316422,-4662.51281194,0.00041096,30]
[381016654,1755948316450,-500.0,0.00041096,30]
[381016655,1755948316477,-600.0,0.00041096,30]
[381016656,1755948316505,-3183.21,0.00041096,120]
[381016657,1755948316537,-1000.0,0.00041096,60]
[381016658,1755948316569,-1000.0,0.00041096,60]
[381016659,1755948316601,-1000.0,0.00041096,60]
[381016660,1755948316632,-1000.0,0.00041096,60]
[381016661,1755948316663,-1000.0,0.00041096,60]
[381016662,1755948316695,-1000.0,0.00041096,60]
[381016663,1755948316726,-1000.0,0.00041096,60]
[381016664,1755948316760,-1000.0,0.00041096,60]
[381016665,1755948316792,-1000.0,0.00041096,60]
[381016666,1755948316823,-1000.0,0.00041096,60]
[381016667,1755948316855,-295.0,0.00041096,30]
[381016668,1755948316886,-1000.0,0.00041096,60]
[381016669,1755948316925,-1000.0,0.00041096,60]
[381016670,1755948316968,-1000.0,0.00041096,60]
[381016671,1755948316999,-1000.0,0.00041096,60]
[381016672,1755948317030,-1000.0,0.00041096,60]
[381016673,1755948317062,-1000.0,0.00041096,60]
[381016674,1755948317094,-1000.0,0.00041096,60]
[381016675,1755948317124,-1000.0,0.00041096,60]
[381016676,1755948317155,-1000.0,0.00041096,60]
[381016677,1755948317188,-1000.0,0.00041096,60]
[381016678,1755948317220,-1000.0,0.00041096,60]
[381016679,1755948317252,-1000.0,0.00041096,60]
[381016680,1755948317284,-1000.0,0.00041096,60]
[381016681,1755948317315,-1000.0,0.00041096,60]
[381016682,1755948317347,-1000.0,0.00041096,60]
[381016683,1755948317379,-1000.0,0.00041096,60]
[381016684,1755948317409,-1000.0,0.00041096,60]
[381016685,1755948317440,-1000.0,0.00041096,60]
[381016686,1755948317470,-1000.0,0.00041096,60]
[381016687,1755948317499,-1000.0,0.00041096,60]
[381016688,1755948317531,-600.0,0.00041096,120]
[381016689,1755948318450,151.0,0.00041096,30]
[381016690,1755948318490,300.0,0.00041096,30]
[381016691,1755948318532,971.74919042,0.0003994,30]
[381016692,1755948318596,1000.0,0.00041096,30]
[381016693,1755948318654,500.0,0.00041096,30]
[381016694,1755948318718,4835.02578598,0.00041096,30]
[381016695,1755948318762,600.0,0.00041096,30]
[381016696,1755948318833,200.0,0.00041096,30]
[381016697,1755948318995,520.0,0.00041096,30]
[381016698,1755948319167,151.0,0.00041096,30]
[381016699,1755948319217,311.1,0.00041096,30]
[381016700,1755948319376,150.0,0.0004,30]
[381016701,1755948319427,1000.0,0.00041096,30]
[381016702,1755948319467,500.0,0.00041096,30]
[381016703,1755948319541,5013.92174006,0.00041096,30]
[381016704,1755948319590,600.0,0.00041096,30]
[381016705,1755948319633,200.0,0.00041096,30]
[381016706,1755948319798,539.24,0.00041096,30]
[381016707,1755948319870,322.6107,0.00041096,30]
[381016708,1755948319909,151.0,0.00041096,30]
[381016709,1755948319985,1000.0,0.00041096,30]
[381016710,1755948320134,500.0,0.00041096,30]
[381016711,1755948320206,5199.43684444,0.00041096,30]
[381016712,1755948320250,600.0,0.00041096,30]
[381016713,1755948320309,200.0,0.00041096,30]
[381016714,1755948320529,559.19188,0.00041096,30]
[381016715,1755948320575,334.5472959,0.00041096,30]
[381016716,1755948320612,151.0,0.00041096,30]
[381016717,1755948320988,160.0,0.00041096,30]
[381016718,1755948321028,1000.0,0.00041096,30]
[381016719,1755948321069,600.0,0.00041096,30]
[381016720,1755948321105,5391.81600769,0.00041096,30]
[381016721,1755948321202,579.88197956,0.00041096,30]
[381016722,1755948321239,346.92554585,0.00041096,30]
[381016723,1755948321282,151.0,0.00041096,30]
[381016724,1755948321318,200.0,0.00041096,30]
[381016725,1755948321382,160.0,0.00041096,30]
[381016726,1755948321432,5591.31319997,0.00041096,30]
[381016727,1755948321468,600.0,0.00041096,30]
[381016728,1755948321602,601.3376128,0.00041096,30]
[381016729,1755948321637,359.76179104,0.00041096,30]
[381016730,1755948321679,160.0,0.00041096,30]
[381016731,1755948321714,151.0,0.00041096,30]
[381016732,1755948321754,200.0,0.00041096,30]
[381016733,1755948321806,5798.19178837,0.00041096,30]
[381016734,1755948321846,600.0,0.00041096,30]
[381016735,1755948321986,623.58710448,0.00041096,30]
[381016736,1755948322034,373.07297731,0.00041096,30]
[381016737,1755948322070,151.0,0.00041096,30]
[381016738,1755948322105,153.75704231,0.00041096,30]
[381016739,1755948322153,180.2197765,0.00041096,30]
[381016740,1755948322197,600.0,0.00041096,30]
[381016741,1755948322471,200.0,0.00041096,30]
[381016742,1755948322507,646.65982734,0.00041096,30]
[381016743,1755948322575,151.0,0.00041096,30]
[381016744,1755948322616,386.87667747,0.00041096,30]
[381016745,1755948322654,600.0,0.00041096,30]
[381016746,1755948322698,1000.0,0.00041096,30]
[381016747,1755948322826,670.58624095,0.00041096,30]
[381016748,1755948322865,200.0,0.00041096,30]
[381016749,1755948322910,151.0,0.00041096,30]
[381016750,1755948322952,401.19111454,0.00041096,30]
[381016751,1755948323006,600.0,0.00041096,30]
[381016752,1755948323146,1000.0,0.00041096,30]
[381016753,1755948323184,695.39793187,0.00041096,30]
[381016754,1755948323227,200.0,0.00041096,30]
[381016755,1755948323264,151.0,0.00041096,30]
[381016756,1755948323299,416.03518578,0.00041096,30]
[381016757,1755948323356,600.0,0.00041096,30]
[381016758,1755948323600,1000.0,0.00041096,30]
[381016759,1755948323842,200.0,0.00041096,30]
[381016760,1755948323880,600.0,0.00041096,30]
[381016761,1755948323924,151.0,0.00041096,30]
[381016762,1755948324178,721.12765535,0.00041096,30]
[381016763,1755948324666,1000.0,0.00041096,30]
[381016764,1755948324712,431.42848765,0.00041096,30]
[381016765,1755948324770,248.81544816,0.00041096,30]
[381016766,1755948324880,747.8093786,0.00041096,30]
[381016767,1755948324959,1000.0,0.00041096,30]
[381016768,1755948325032,600.0,0.00041096,30]
[381016769,1755948325075,600.0,0.00041096,30]
[381016770,1755948325136,151.0,0.00041096,30]
[381016771,1755948325174,447.3913417,0.00041096,30]
[381016772,1755948325216,775.47832561,0.00041096,30]
[381016773,1755948325332,600.0,0.00041096,30]
[381016774,1755948325369,600.0,0.00041096,30]
[381016775,1755948325448,804.17102365,0.00041096,30]
[381016776,1755948325505,463.94482134,0.00041096,30]
[381016777,1755948325732,844.27675029,0.0004,30]
[381016778,1755948325773,600.0,0.00041096,30]
[381016779,1755948325856,833.92535153,0.00041096,30]
[381016780,1755948325963,481.11077973,0.00041096,30]
[381016781,1755948326066,151.0,0.00041096,30]
[381016782,1755948326102,600.0,0.00041096,30]
[381016783,1755948326221,552.75722002,0.00041096,30]
[381016784,1755948326280,600.80324974,0.00041096,30]
[381016785,1755948326565,151.0,0.00041096,30]
[381016786,1755948326682,600.0,0.00041096,30]
[381016787,1755948326902,182.33256634,0.00041096,30]
[381016788,1755948327011,600.0,0.00041096,30]
[381016789,1755948327358,600.0,0.00041096,30]
[381016790,1755948327406,300.0,0.00041096,30]
[381016791,1755948327805,300.0,0.00041096,30]
[381016792,1755948327875,600.0,0.00041096,30]
[381016793,1755948327930,300.0,0.00041096,30]
[381016794,1755948329193,374.02100165,0.00041096,30]
[381016795,1755948329231,600.0,0.00041096,30]
[381016796,1755948329511,300.0,0.00041096,30]
[381016797,1755948329788,600.0,0.00041096,30]
[381016798,1755948329983,300.0,0.00041096,30]
[381016799,1755948330021,200.0,0.00041096,30]
[381016800,1755948330103,600.0,0.00041096,30]
[381016801,1755948330230,300.0,0.00041096,30]
[381016802,1755948330278,207.4,0.00041096,30]
[381016803,1755948330322,3534.76321059,0.00041096,30]
[381016804,1755948330556,1000.0,0.00041096,30]
[381016805,1755948330601,300.0,0.00041096,30]
[381016806,1755948330642,215.0738,0.00041096,30]
[381016807,1755948330710,600.0,0.00041096,30]
[381016808,1755948337356,9786.95780841,9e-05,2]
[381016809,1755948363727,1183.98852359,8e-05,2]
[381016810,1755948363749,9856.51883001,8e-05,2]
[381016811,1755948468256,333.13598427,0.00028,120]
[381016812,1755948473135,-5367.0,0.0002,20]
[381016813,1755948486765,222.91618352,0.00028667,120]
[381016814,1755948489584,432.95149629,0.00028297,120]
[381016815,1755948500538,1951.08193664,0.00028767,120]
[381016816,1755948505929,237.47833094,0.00028767,120]
[381016817,1755948512022,2342.55852144,0.00026,120]
[381016818,1755948516338,332.58700681,0.000246,120]
[381016819,1755948517294,218.49417028,0.00027,120]
[381016820,1755948520933,200.0,0.00025,120]